[Event "Early-Titled-Tuesday-Blitz-October-17-2023"]
[Site "Chess.com"]
[Date "2023.10.17"]
[Round "10"]
[White "LeRoidesChampions"]
[Black "AradNazari"]
[Result "0-1"]
[WhiteElo "2701"]
[BlackElo "2855"]
[TimeControl "180+1"]
[EndTime "10:00:15 PDT"]
[Termination "AradNazari won by checkmate"]

1. e4 {[%clk 0:03:00.9]} 1... c5 {[%clk 0:02:59.7]} 2. Nf3 {[%clk 0:03:01.2]}
2... d6 {[%clk 0:03:00.4]} 3. d4 {[%clk 0:02:59.1]} 3... cxd4 {[%clk 0:03:01.3]}
4. Nxd4 {[%clk 0:02:59.8]} 4... Nf6 {[%clk 0:03:02]} 5. Nc3 {[%clk 0:03:00.2]}
5... a6 {[%clk 0:03:02.2]} 6. Qf3 {[%clk 0:03:00]} 6... Nbd7 {[%clk 0:02:57.2]}
7. Be3 {[%clk 0:02:57]} 7... g6 {[%clk 0:02:53.3]} 8. h3 {[%clk 0:02:55.7]} 8...
Bg7 {[%clk 0:02:53.2]} 9. O-O-O {[%clk 0:02:56.3]} 9... Ne5 {[%clk 0:02:46.5]}
10. Qg3 {[%clk 0:02:50.8]} 10... O-O {[%clk 0:02:38.9]} 11. f4 {[%clk
0:02:50.7]} 11... Nc6 {[%clk 0:02:39.5]} 12. Be2 {[%clk 0:02:49.4]} 12... Qa5
{[%clk 0:02:36.6]} 13. Bf3 {[%clk 0:02:44.2]} 13... Nxd4 {[%clk 0:02:34.6]} 14.
Bxd4 {[%clk 0:02:43.9]} 14... Be6 {[%clk 0:02:35.1]} 15. a3 {[%clk 0:02:36.6]}
15... Rac8 {[%clk 0:02:30.9]} 16. Qf2 {[%clk 0:02:33.7]} 16... Nd7 {[%clk
0:02:23]} 17. g4 {[%clk 0:02:27.7]} 17... b5 {[%clk 0:02:08.7]} 18. Bxg7 {[%clk
0:02:19.7]} 18... Kxg7 {[%clk 0:02:08]} 19. f5 {[%clk 0:02:20.2]} 19... Bc4
{[%clk 0:01:42.2]} 20. g5 {[%clk 0:02:19.2]} 20... b4 {[%clk 0:01:31.7]} 21.
axb4 {[%clk 0:02:15.2]} 21... Qxb4 {[%clk 0:01:32.6]} 22. Qh4 {[%clk 0:02:06.8]}
22... Rb8 {[%clk 0:01:26.4]} 23. Rd4 {[%clk 0:01:41.9]} 23... Qxb2+ {[%clk
0:01:24.1]} 24. Kd2 {[%clk 0:01:42.1]} 24... Bb3 {[%clk 0:01:13.8]} 25. Rc1
{[%clk 0:01:35.7]} 25... Rfc8 {[%clk 0:01:11.5]} 26. Qh6+ {[%clk 0:01:22.6]}
26... Kg8 {[%clk 0:01:10.1]} 27. Rd3 {[%clk 0:01:22.1]} 27... Bc4 {[%clk
0:00:39.1]} 28. Rxd6 {[%clk 0:01:09.7]} 28... Bb5 {[%clk 0:00:17.2]} 29. Nxb5
{[%clk 0:01:07.3]} 29... Qxb5 {[%clk 0:00:15.4]} 30. Rd5 {[%clk 0:00:50.4]}
30... Qb4+ {[%clk 0:00:11.9]} 31. c3 {[%clk 0:00:50.6]} 31... Qb6 {[%clk
0:00:05.6]} 32. Rd4 {[%clk 0:00:14.5]} 32... Nc5 {[%clk 0:00:06]} 33. Bd1 {[%clk
0:00:11]} 33... Qb2+ {[%clk 0:00:04]} 34. Rc2 {[%clk 0:00:10.9]} 34... Nb3+
{[%clk 0:00:04.6]} 35. Ke3 {[%clk 0:00:11.3]} 35... Rxc3+ {[%clk 0:00:04.4]} 36.
Rxc3 {[%clk 0:00:11.7]} 36... Qxc3+ {[%clk 0:00:05.3]} 37. Rd3 {[%clk
0:00:12.5]} 37... Qe1+ {[%clk 0:00:05.1]} 38. Kf4 {[%clk 0:00:11.5]} 38... Qf2+
{[%clk 0:00:03.6]} 39. Kg4 {[%clk 0:00:11.5]} 39... Qg1+ {[%clk 0:00:02.7]} 40.
Kf4 {[%clk 0:00:10]} 40... Nd4 {[%clk 0:00:02.9]} 41. Ke5 {[%clk 0:00:08.5]}
41... Nc6+ {[%clk 0:00:02.6]} 42. Kd5 {[%clk 0:00:09]} 42... Nb4+ {[%clk
0:00:02]} 43. Kc4 {[%clk 0:00:08.2]} 43... Rc8+ {[%clk 0:00:02]} 44. Kxb4 {[%clk
0:00:08]} 44... Qc5+ {[%clk 0:00:02.7]} 45. Ka4 {[%clk 0:00:02.7]} 45... Qb5+
{[%clk 0:00:03.3]} 46. Ka3 {[%clk 0:00:03.6]} 46... Qxd3+ {[%clk 0:00:03.8]} 47.
Bb3 {[%clk 0:00:04.2]} 47... Rb8 {[%clk 0:00:03.4]} 48. f6 {[%clk 0:00:01.6]}
48... Qxb3# {[%clk 0:00:03.8]} 0-1

[Event "Early-Titled-Tuesday-Blitz-October-17-2023"]
[Site "Chess.com"]
[Date "2023.10.17"]
[Round "10"]
[White "GeorgiosSouleidis"]
[Black "ErikRonka"]
[Result "1-0"]
[WhiteElo "2623"]
[BlackElo "2503"]
[TimeControl "180+1"]
[EndTime "10:00:17 PDT"]
[Termination "GeorgiosSouleidis won by checkmate"]

1. e4 {[%clk 0:03:00.9]} 1... c5 {[%clk 0:02:59.7]} 2. Be2 {[%clk 0:03:00.8]}
2... e6 {[%clk 0:02:58.7]} 3. d3 {[%clk 0:03:01.2]} 3... d5 {[%clk 0:02:59.4]}
4. f4 {[%clk 0:03:01.6]} 4... Nc6 {[%clk 0:02:59.9]} 5. Nf3 {[%clk 0:03:01.6]}
5... Bd6 {[%clk 0:03:00.5]} 6. O-O {[%clk 0:03:02]} 6... Nge7 {[%clk 0:03:01.2]}
7. c3 {[%clk 0:03:02.5]} 7... O-O {[%clk 0:03:01.8]} 8. g3 {[%clk 0:03:03.1]}
8... f6 {[%clk 0:02:57.8]} 9. Be3 {[%clk 0:03:02.7]} 9... b6 {[%clk 0:02:57.6]}
10. a3 {[%clk 0:03:02.6]} 10... Qc7 {[%clk 0:02:54.6]} 11. Nbd2 {[%clk
0:03:02.1]} 11... Bb7 {[%clk 0:02:53.6]} 12. Rc1 {[%clk 0:03:02]} 12... Rad8
{[%clk 0:02:50.3]} 13. b4 {[%clk 0:02:59.7]} 13... Kh8 {[%clk 0:02:49.2]} 14.
Qb3 {[%clk 0:02:55.2]} 14... Ba8 {[%clk 0:02:14]} 15. Rfe1 {[%clk 0:02:54.1]}
15... g5 {[%clk 0:02:02.6]} 16. e5 {[%clk 0:02:15.5]} 16... fxe5 {[%clk
0:02:02.2]} 17. Nxg5 {[%clk 0:02:15]} 17... exf4 {[%clk 0:01:48.7]} 18. Nxe6
{[%clk 0:02:11.7]} 18... Qd7 {[%clk 0:01:49]} 19. Nxf4 {[%clk 0:02:09.4]} 19...
d4 {[%clk 0:01:42]} 20. cxd4 {[%clk 0:02:09.1]} 20... cxd4 {[%clk 0:01:36.4]}
21. Bf2 {[%clk 0:02:02.7]} 21... Bxf4 {[%clk 0:01:33.8]} 22. gxf4 {[%clk
0:02:01.7]} 22... Rg8+ {[%clk 0:01:32.8]} 23. Bg3 {[%clk 0:01:49.6]} 23... Nf5
{[%clk 0:01:19.4]} 24. Ne4 {[%clk 0:01:45.7]} 24... Nce7 {[%clk 0:01:17.5]} 25.
Bf1 {[%clk 0:00:58.6]} 25... Nxg3 {[%clk 0:01:11.2]} 26. hxg3 {[%clk 0:00:49.7]}
26... Nf5 {[%clk 0:00:49.4]} 27. Bh3 {[%clk 0:00:49.4]} 27... Rdf8 {[%clk
0:00:14.1]} 28. Rc2 {[%clk 0:00:42.9]} 28... Qg7 {[%clk 0:00:12.2]} 29. Bxf5
{[%clk 0:00:41.9]} 29... Rxf5 {[%clk 0:00:11.4]} 30. Rg2 {[%clk 0:00:40.8]}
30... Qh6 {[%clk 0:00:09.8]} 31. Qb2 {[%clk 0:00:36.6]} 31... Rd8 {[%clk
0:00:08.3]} 32. Rc1 {[%clk 0:00:22.2]} 32... Rh5 {[%clk 0:00:08.1]} 33. Kf2
{[%clk 0:00:22.8]} 33... Rh2 {[%clk 0:00:07.6]} 34. Rc4 {[%clk 0:00:17.8]} 34...
Rxg2+ {[%clk 0:00:05.2]} 35. Kxg2 {[%clk 0:00:18]} 35... Qd6 {[%clk 0:00:03.3]}
36. Qc1 {[%clk 0:00:07.3]} 36... b5 {[%clk 0:00:03.1]} 37. Rc8 {[%clk
0:00:06.7]} 37... Bxe4+ {[%clk 0:00:02.2]} 38. dxe4 {[%clk 0:00:06.4]} 38... Kg7
{[%clk 0:00:03.1]} 39. Rxd8 {[%clk 0:00:06.5]} 39... Qxd8 {[%clk 0:00:04]} 40.
Qd2 {[%clk 0:00:05.6]} 40... Qe7 {[%clk 0:00:03.8]} 41. Qxd4+ {[%clk 0:00:05.4]}
41... Kh6 {[%clk 0:00:04.2]} 42. Kf3 {[%clk 0:00:05.4]} 42... Qf7 {[%clk
0:00:04.5]} 43. e5 {[%clk 0:00:05.2]} 43... Qb3+ {[%clk 0:00:04.5]} 44. Qe3
{[%clk 0:00:05.8]} 44... Qd5+ {[%clk 0:00:05]} 45. Kg4 {[%clk 0:00:05.4]} 45...
Kg7 {[%clk 0:00:05.3]} 46. e6 {[%clk 0:00:05.1]} 46... Kf8 {[%clk 0:00:05.9]}
47. f5 {[%clk 0:00:05.1]} 47... Ke7 {[%clk 0:00:06.2]} 48. Kg5 {[%clk
0:00:04.2]} 48... Qc4 {[%clk 0:00:05.4]} 49. Qxa7+ {[%clk 0:00:04.2]} 49... Kd6
{[%clk 0:00:04.5]} 50. Qd7+ {[%clk 0:00:04.4]} 50... Ke5 {[%clk 0:00:05]} 51.
Qg7+ {[%clk 0:00:03.4]} 51... Kd6 {[%clk 0:00:04.8]} 52. Qd7+ {[%clk 0:00:03.3]}
52... Ke5 {[%clk 0:00:05.3]} 53. e7 {[%clk 0:00:03.9]} 53... Qc1+ {[%clk
0:00:05.1]} 54. Kg4 {[%clk 0:00:03.4]} 54... h6 {[%clk 0:00:01.9]} 55. e8=Q+
{[%clk 0:00:03.3]} 55... Kf6 {[%clk 0:00:01.2]} 56. Qee6# {[%clk 0:00:03.3]} 1-0

[Event "Early-Titled-Tuesday-Blitz-October-17-2023"]
[Site "Chess.com"]
[Date "2023.10.17"]
[Round "10"]
[White "Firouzja2003"]
[Black "Msb2"]
[Result "1-0"]
[WhiteElo "3100"]
[BlackElo "3063"]
[TimeControl "180+1"]
[EndTime "10:00:33 PDT"]
[Termination "Firouzja2003 won by resignation"]

1. d4 {[%clk 0:03:00.9]} 1... d5 {[%clk 0:03:00.3]} 2. c4 {[%clk 0:03:00.1]}
2... e6 {[%clk 0:03:00.8]} 3. Nc3 {[%clk 0:03:00.2]} 3... Bb4 {[%clk 0:03:01.1]}
4. e3 {[%clk 0:02:54.4]} 4... Nf6 {[%clk 0:03:01.3]} 5. a3 {[%clk 0:02:54.6]}
5... Bxc3+ {[%clk 0:03:01.4]} 6. bxc3 {[%clk 0:02:55.1]} 6... c6 {[%clk
0:03:02.2]} 7. Bd3 {[%clk 0:02:51.5]} 7... e5 {[%clk 0:03:02.1]} 8. a4 {[%clk
0:02:24.8]} 8... e4 {[%clk 0:02:58.6]} 9. Bc2 {[%clk 0:02:24.7]} 9... O-O {[%clk
0:02:58]} 10. Bb3 {[%clk 0:02:11.9]} 10... b6 {[%clk 0:02:51.3]} 11. Ba3 {[%clk
0:02:06.8]} 11... Re8 {[%clk 0:02:51.1]} 12. cxd5 {[%clk 0:02:03.9]} 12... cxd5
{[%clk 0:02:52]} 13. c4 {[%clk 0:02:03.5]} 13... dxc4 {[%clk 0:02:20.1]} 14.
Bxc4 {[%clk 0:02:04.4]} 14... Ba6 {[%clk 0:02:20.8]} 15. Rc1 {[%clk 0:01:52.6]}
15... Bxc4 {[%clk 0:02:11.5]} 16. Rxc4 {[%clk 0:01:53.5]} 16... b5 {[%clk
0:02:12.4]} 17. Rc5 {[%clk 0:01:05.3]} 17... Qa5+ {[%clk 0:02:03.4]} 18. Kf1
{[%clk 0:01:05.4]} 18... a6 {[%clk 0:01:50.2]} 19. Ne2 {[%clk 0:00:53.6]} 19...
Nbd7 {[%clk 0:01:49.8]} 20. Rc1 {[%clk 0:00:43]} 20... Nb6 {[%clk 0:01:45.3]}
21. Nf4 {[%clk 0:00:32.2]} 21... Qxa4 {[%clk 0:01:40.2]} 22. Qxa4 {[%clk
0:00:24.6]} 22... Nxa4 {[%clk 0:01:41.1]} 23. Bd6 {[%clk 0:00:20.1]} 23... a5
{[%clk 0:01:30.3]} 24. g4 {[%clk 0:00:18.9]} 24... Nxg4 {[%clk 0:01:15.4]} 25.
Ke2 {[%clk 0:00:13.1]} 25... Ra6 {[%clk 0:01:04.9]} 26. Rhg1 {[%clk 0:00:08.1]}
26... Rxd6 {[%clk 0:01:01.6]} 27. Rxg4 {[%clk 0:00:08.7]} 27... b4 {[%clk
0:01:02.2]} 28. Rg5 {[%clk 0:00:08.5]} 28... b3 {[%clk 0:00:54.8]} 29. Kd2
{[%clk 0:00:07.4]} 29... b2 {[%clk 0:00:34.8]} 30. Rb1 {[%clk 0:00:07.6]} 30...
Nb6 {[%clk 0:00:35.4]} 31. Kc3 {[%clk 0:00:06.8]} 31... Rc8+ {[%clk 0:00:21.8]}
32. Kxb2 {[%clk 0:00:07]} 32... h6 {[%clk 0:00:22.5]} 33. Rb5 {[%clk 0:00:06.1]}
33... Na4+ {[%clk 0:00:22.6]} 34. Kb3 {[%clk 0:00:05.9]} 34... Nc3 {[%clk
0:00:20.3]} 35. Rc1 {[%clk 0:00:06.3]} 35... a4+ {[%clk 0:00:19.5]} 36. Kb2
{[%clk 0:00:06.8]} 36... a3+ {[%clk 0:00:18.2]} 37. Ka1 {[%clk 0:00:07.2]} 37...
Nxb5 {[%clk 0:00:15]} 38. Rxc8+ {[%clk 0:00:08.1]} 38... Kh7 {[%clk 0:00:15.9]}
39. Rc5 {[%clk 0:00:08.5]} 39... Rb6 {[%clk 0:00:13.1]} 40. Nd5 {[%clk
0:00:08.9]} 40... Rb7 {[%clk 0:00:13.8]} 41. h4 {[%clk 0:00:08.8]} 41... Nd6
{[%clk 0:00:12.9]} 42. Rc6 {[%clk 0:00:05.4]} 42... Nf5 {[%clk 0:00:11.3]} 43.
Nc3 {[%clk 0:00:05.5]} 43... Nxh4 {[%clk 0:00:09.9]} 44. Nxe4 {[%clk 0:00:06]}
44... f5 {[%clk 0:00:09]} 45. Nc5 {[%clk 0:00:05.5]} 45... Rb2 {[%clk
0:00:09.5]} 46. d5 {[%clk 0:00:05.7]} 46... Rxf2 {[%clk 0:00:08.7]} 47. d6
{[%clk 0:00:06.2]} 47... Rd2 {[%clk 0:00:09.5]} 48. d7 {[%clk 0:00:06.5]} 48...
Ng2 {[%clk 0:00:02.8]} 49. Rc8 {[%clk 0:00:04.7]} 49... Nxe3 {[%clk 0:00:03.7]}
50. d8=Q {[%clk 0:00:04.2]} 50... Nc2+ {[%clk 0:00:04.6]} 51. Kb1 {[%clk
0:00:04.3]} 51... Rxd8 {[%clk 0:00:04.7]} 52. Rxd8 {[%clk 0:00:05.2]} 52... Ne3
{[%clk 0:00:05.1]} 53. Rd3 {[%clk 0:00:04.4]} 53... f4 {[%clk 0:00:04.5]} 54.
Rxa3 {[%clk 0:00:04.1]} 54... g5 {[%clk 0:00:05.1]} 55. Kc1 {[%clk 0:00:04.2]}
55... g4 {[%clk 0:00:05.5]} 56. Ne6 {[%clk 0:00:02.6]} 56... g3 {[%clk
0:00:04.3]} 57. Nxf4 {[%clk 0:00:02.8]} 57... g2 {[%clk 0:00:04.9]} 58. Ne2
{[%clk 0:00:03.2]} 58... Nf5 {[%clk 0:00:03.2]} 59. Kd2 {[%clk 0:00:03.2]} 59...
h5 {[%clk 0:00:03.3]} 60. Ng1 {[%clk 0:00:03.8]} 60... h4 {[%clk 0:00:03.5]} 61.
Ke1 {[%clk 0:00:04.3]} 61... Kg6 {[%clk 0:00:04.2]} 62. Kf2 {[%clk 0:00:04.8]}
62... Kh5 {[%clk 0:00:04.4]} 63. Kxg2 {[%clk 0:00:05.2]} 1-0

[Event "Early-Titled-Tuesday-Blitz-October-17-2023"]
[Site "Chess.com"]
[Date "2023.10.17"]
[Round "10"]
[White "N4700000"]
[Black "scarabee43"]
[Result "0-1"]
[WhiteElo "2539"]
[BlackElo "2805"]
[TimeControl "180+1"]
[EndTime "10:00:34 PDT"]
[Termination "scarabee43 won on time"]

1. e4 {[%clk 0:03:00.9]} 1... c5 {[%clk 0:02:59.5]} 2. Nf3 {[%clk 0:03:00.2]}
2... e6 {[%clk 0:02:59.4]} 3. c3 {[%clk 0:02:59.1]} 3... d5 {[%clk 0:02:58]} 4.
e5 {[%clk 0:02:57.9]} 4... d4 {[%clk 0:02:55.5]} 5. d3 {[%clk 0:02:51.8]} 5...
Nc6 {[%clk 0:02:54.6]} 6. g3 {[%clk 0:02:51.4]} 6... Nge7 {[%clk 0:02:52.6]} 7.
Bg2 {[%clk 0:02:50.3]} 7... dxc3 {[%clk 0:02:44.9]} 8. Nxc3 {[%clk 0:02:45.5]}
8... Nf5 {[%clk 0:02:41.9]} 9. O-O {[%clk 0:02:43.6]} 9... Be7 {[%clk
0:02:41.7]} 10. Ne4 {[%clk 0:02:32.9]} 10... O-O {[%clk 0:02:39.1]} 11. a3
{[%clk 0:02:24.5]} 11... b6 {[%clk 0:02:33.2]} 12. Bg5 {[%clk 0:02:21.5]} 12...
Bb7 {[%clk 0:02:33.1]} 13. h4 {[%clk 0:02:16]} 13... h6 {[%clk 0:02:30.9]} 14.
Bxe7 {[%clk 0:02:13.9]} 14... Qxe7 {[%clk 0:02:31.5]} 15. Qd2 {[%clk 0:02:09.1]}
15... Rfd8 {[%clk 0:02:30.4]} 16. Rfd1 {[%clk 0:02:09]} 16... Kh8 {[%clk
0:02:21.9]} 17. Qf4 {[%clk 0:02:06.1]} 17... Ncd4 {[%clk 0:02:19.9]} 18. Nxd4
{[%clk 0:01:53.8]} 18... Rxd4 {[%clk 0:02:17.3]} 19. Rd2 {[%clk 0:01:43.8]}
19... Rad8 {[%clk 0:02:16.6]} 20. Rad1 {[%clk 0:01:44.3]} 20... Ba6 {[%clk
0:01:59]} 21. Qf3 {[%clk 0:01:33.9]} 21... Bb7 {[%clk 0:01:51.8]} 22. Qf4 {[%clk
0:01:31.1]} 22... Bc6 {[%clk 0:01:49.9]} 23. h5 {[%clk 0:01:29]} 23... Ba4
{[%clk 0:01:49.3]} 24. Re1 {[%clk 0:01:22.5]} 24... Bb5 {[%clk 0:01:45.1]} 25.
g4 {[%clk 0:01:16.8]} 25... Nh4 {[%clk 0:01:45.1]} 26. Bh1 {[%clk 0:01:11.3]}
26... Bxd3 {[%clk 0:01:45.1]} 27. Qg3 {[%clk 0:01:02.7]} 27... Bxe4 {[%clk
0:01:23]} 28. Rxd4 {[%clk 0:01:02.5]} 28... Rxd4 {[%clk 0:01:22.7]} 29. Bxe4
{[%clk 0:01:00]} 29... g5 {[%clk 0:01:18.7]} 30. hxg6 {[%clk 0:00:55.3]} 30...
fxg6 {[%clk 0:01:13.7]} 31. b4 {[%clk 0:00:46.9]} 31... cxb4 {[%clk 0:01:11.6]}
32. Qe3 {[%clk 0:00:46.1]} 32... Qd8 {[%clk 0:00:29.2]} 33. Qxh6+ {[%clk
0:00:41.5]} 33... Kg8 {[%clk 0:00:29.8]} 34. axb4 {[%clk 0:00:37.9]} 34... Rd1
{[%clk 0:00:29.8]} 35. Kf1 {[%clk 0:00:26.1]} 35... Rxe1+ {[%clk 0:00:24.5]} 36.
Kxe1 {[%clk 0:00:27]} 36... Qd4 {[%clk 0:00:24.8]} 37. Qxh4 {[%clk 0:00:18.6]}
37... Qxe4+ {[%clk 0:00:24.6]} 38. Kf1 {[%clk 0:00:18.8]} 38... Qxe5 {[%clk
0:00:22.4]} 39. Qd8+ {[%clk 0:00:18.6]} 39... Kg7 {[%clk 0:00:22.3]} 40. Qe7+
{[%clk 0:00:18.5]} 40... Kh6 {[%clk 0:00:22.2]} 41. Qh4+ {[%clk 0:00:18]} 41...
Kg7 {[%clk 0:00:21.9]} 42. Qe7+ {[%clk 0:00:18.5]} 42... Kh8 {[%clk 0:00:21.5]}
43. Qf8+ {[%clk 0:00:16]} 43... Kh7 {[%clk 0:00:21]} 44. Qe7+ {[%clk 0:00:16.1]}
44... Qg7 {[%clk 0:00:21.2]} 45. Qxe6 {[%clk 0:00:16.6]} 45... Qc7 {[%clk
0:00:18.6]} 46. Qe4 {[%clk 0:00:12.7]} 46... a5 {[%clk 0:00:17.9]} 47. bxa5
{[%clk 0:00:12.2]} 47... bxa5 {[%clk 0:00:18.5]} 48. g5 {[%clk 0:00:11.3]} 48...
Qc1+ {[%clk 0:00:17.1]} 49. Ke2 {[%clk 0:00:11.1]} 49... Qxg5 {[%clk 0:00:17.5]}
50. Qb7+ {[%clk 0:00:10.4]} 50... Kh6 {[%clk 0:00:17.9]} 51. Qa8 {[%clk
0:00:08.8]} 51... Qe5+ {[%clk 0:00:17.7]} 52. Kf3 {[%clk 0:00:08.7]} 52... Kg5
{[%clk 0:00:13.9]} 53. Kg2 {[%clk 0:00:06.6]} 53... Qf5 {[%clk 0:00:11.9]} 54.
Qd8+ {[%clk 0:00:05.7]} 54... Kh5 {[%clk 0:00:11.3]} 55. Qh8+ {[%clk 0:00:05.2]}
55... Kg4 {[%clk 0:00:12]} 56. Qh3+ {[%clk 0:00:05.2]} 56... Kg5 {[%clk
0:00:11.1]} 57. Qe3+ {[%clk 0:00:03.9]} 57... Kf6 {[%clk 0:00:10.2]} 58. Qd4+
{[%clk 0:00:02.7]} 58... Qe5 {[%clk 0:00:10.6]} 59. Qd8+ {[%clk 0:00:02.9]}
59... Kf7 {[%clk 0:00:11]} 60. Qd7+ {[%clk 0:00:02.6]} 60... Kf8 {[%clk
0:00:10.4]} 61. Qd8+ {[%clk 0:00:02.5]} 61... Kg7 {[%clk 0:00:10.2]} 62. Qd7+
{[%clk 0:00:02.6]} 62... Kh6 {[%clk 0:00:10.4]} 63. Qh3+ {[%clk 0:00:02.5]}
63... Qh5 {[%clk 0:00:11]} 64. Qd7 {[%clk 0:00:02.2]} 64... Qf5 {[%clk 0:00:11]}
0-1

[Event "Early-Titled-Tuesday-Blitz-October-17-2023"]
[Site "Chess.com"]
[Date "2023.10.17"]
[Round "10"]
[White "Karttunen"]
[Black "Rosh1610"]
[Result "1-0"]
[WhiteElo "2588"]
[BlackElo "2447"]
[TimeControl "180+1"]
[EndTime "10:00:45 PDT"]
[Termination "Karttunen won by checkmate"]

1. d4 {[%clk 0:03:00.9]} 1... Nf6 {[%clk 0:02:59.8]} 2. c4 {[%clk 0:03:00.6]}
2... e6 {[%clk 0:03:00.1]} 3. Nc3 {[%clk 0:02:59.8]} 3... Bb4 {[%clk 0:03:00]}
4. e3 {[%clk 0:02:58.8]} 4... O-O {[%clk 0:02:59.1]} 5. Bd3 {[%clk 0:02:56.4]}
5... d5 {[%clk 0:02:55.9]} 6. Nf3 {[%clk 0:02:55.5]} 6... b6 {[%clk 0:02:52.8]}
7. a3 {[%clk 0:02:47.9]} 7... Bxc3+ {[%clk 0:02:48.9]} 8. bxc3 {[%clk
0:02:47.8]} 8... dxc4 {[%clk 0:02:48.8]} 9. Bxc4 {[%clk 0:02:46.5]} 9... Bb7
{[%clk 0:02:49.4]} 10. O-O {[%clk 0:02:43.3]} 10... Nbd7 {[%clk 0:02:49.4]} 11.
Re1 {[%clk 0:02:37.7]} 11... c5 {[%clk 0:02:48.3]} 12. Bb2 {[%clk 0:02:30.9]}
12... Rc8 {[%clk 0:02:47.9]} 13. Rc1 {[%clk 0:02:24.8]} 13... Qe7 {[%clk
0:02:44]} 14. Ba2 {[%clk 0:02:16.7]} 14... Rfd8 {[%clk 0:02:42.5]} 15. c4 {[%clk
0:02:07.2]} 15... Nf8 {[%clk 0:02:15.8]} 16. Ne5 {[%clk 0:01:09]} 16... Ng6
{[%clk 0:02:12.1]} 17. Nd3 {[%clk 0:00:59.1]} 17... Ba8 {[%clk 0:02:03.8]} 18.
f3 {[%clk 0:00:58.4]} 18... h6 {[%clk 0:01:58.2]} 19. a4 {[%clk 0:00:55.5]}
19... Bc6 {[%clk 0:01:55.4]} 20. a5 {[%clk 0:00:53]} 20... Ba8 {[%clk
0:01:54.8]} 21. Qa4 {[%clk 0:00:48.7]} 21... Bc6 {[%clk 0:01:52.6]} 22. Qa3
{[%clk 0:00:46]} 22... Bb7 {[%clk 0:01:49.7]} 23. Red1 {[%clk 0:00:41.9]} 23...
Nh5 {[%clk 0:01:45.2]} 24. Qb3 {[%clk 0:00:34.3]} 24... Qg5 {[%clk 0:01:44.2]}
25. Ne1 {[%clk 0:00:31]} 25... cxd4 {[%clk 0:01:33.5]} 26. exd4 {[%clk
0:00:30.2]} 26... Ngf4 {[%clk 0:01:28.1]} 27. Kf1 {[%clk 0:00:28.7]} 27... Qxa5
{[%clk 0:01:17.3]} 28. Bb1 {[%clk 0:00:26.8]} 28... Ba6 {[%clk 0:01:09.7]} 29.
g3 {[%clk 0:00:24.9]} 29... Rxc4 {[%clk 0:00:49.8]} 30. Rxc4 {[%clk 0:00:23.8]}
30... Qd5 {[%clk 0:00:48.9]} 31. Rc1 {[%clk 0:00:19.3]} 31... Rc8 {[%clk
0:00:05.9]} 32. Bd3 {[%clk 0:00:18.7]} 32... Rxc4 {[%clk 0:00:05.4]} 33. Bxc4
{[%clk 0:00:17.8]} 33... Bxc4+ {[%clk 0:00:05.7]} 34. Qxc4 {[%clk 0:00:17.2]}
34... Qf5 {[%clk 0:00:04.6]} 35. gxf4 {[%clk 0:00:17.5]} 35... Nxf4 {[%clk
0:00:04.6]} 36. Qc2 {[%clk 0:00:15.2]} 36... Qh3+ {[%clk 0:00:04.5]} 37. Kg1
{[%clk 0:00:15.4]} 37... Qh4 {[%clk 0:00:04.5]} 38. Qc8+ {[%clk 0:00:11.9]}
38... Kh7 {[%clk 0:00:04.2]} 39. Qc2+ {[%clk 0:00:12.3]} 39... f5 {[%clk
0:00:04.5]} 40. Ng2 {[%clk 0:00:11.6]} 40... Qg5 {[%clk 0:00:04.4]} 41. Kf1
{[%clk 0:00:11.2]} 41... Nh3 {[%clk 0:00:04.5]} 42. f4 {[%clk 0:00:10.1]} 42...
Nxf4 {[%clk 0:00:04.1]} 43. Nxf4 {[%clk 0:00:10.2]} 43... Qxf4+ {[%clk 0:00:05]}
44. Qf2 {[%clk 0:00:10.2]} 44... Qe4 {[%clk 0:00:05.2]} 45. Re1 {[%clk
0:00:10.1]} 45... Qd3+ {[%clk 0:00:05.5]} 46. Kg1 {[%clk 0:00:08.4]} 46... Qc4
{[%clk 0:00:03.8]} 47. Qe3 {[%clk 0:00:08.6]} 47... Qd5 {[%clk 0:00:03.4]} 48.
Qxe6 {[%clk 0:00:08.5]} 48... Qf3 {[%clk 0:00:03.3]} 49. Qe2 {[%clk 0:00:08.2]}
49... Qf4 {[%clk 0:00:03.3]} 50. Rf1 {[%clk 0:00:08.1]} 50... Qg5+ {[%clk
0:00:03.6]} 51. Qg2 {[%clk 0:00:08.5]} 51... Qe3+ {[%clk 0:00:03.8]} 52. Qf2
{[%clk 0:00:09.2]} 52... Qg5+ {[%clk 0:00:03.8]} 53. Kh1 {[%clk 0:00:09.8]}
53... g6 {[%clk 0:00:03.5]} 54. Qf4 {[%clk 0:00:09.7]} 54... Qd8 {[%clk
0:00:03.3]} 55. Qf3 {[%clk 0:00:09.6]} 55... Qd6 {[%clk 0:00:03.3]} 56. d5
{[%clk 0:00:09.8]} 56... Qd7 {[%clk 0:00:03.4]} 57. Rd1 {[%clk 0:00:09.8]} 57...
Qd6 {[%clk 0:00:03.5]} 58. Qc3 {[%clk 0:00:09.7]} 58... Qd7 {[%clk 0:00:02.2]}
59. Qg7+ {[%clk 0:00:09.9]} 59... Qxg7 {[%clk 0:00:02.7]} 60. Bxg7 {[%clk
0:00:10.7]} 60... Kxg7 {[%clk 0:00:03.6]} 61. d6 {[%clk 0:00:11.3]} 61... Kf7
{[%clk 0:00:04.5]} 62. d7 {[%clk 0:00:11.9]} 62... Ke7 {[%clk 0:00:04.2]} 63.
d8=Q+ {[%clk 0:00:12.8]} 63... Kf7 {[%clk 0:00:05]} 64. Qd7+ {[%clk 0:00:13.2]}
64... Kf8 {[%clk 0:00:05]} 65. Qc7 {[%clk 0:00:13.1]} 65... Kg8 {[%clk
0:00:05.9]} 66. Rd8# {[%clk 0:00:13.4]} 1-0